Workbook

Sheet Operations
A1: Original Submission: 4/30/2014
A3: Fares | B3: Fixed Route | C3: Paratransit
A4: Passenger Fare Collected ($) | B4: $946.48 | C4: $490.00
A5: Number of Regular Fares | B5: 796 | C5: 240
A6: Number of Ticket | B6: 85 | C6: 77
A7: Number of Half Fare | B7: 256
A8: Number of Free | B8: 137
A9: Number of PCAs | C9: 0
A10: Service Days | B10: 20 | C10: 20
A12: Trips | B12: Fixed Route | C12: Paratransit
A13: One-way Trips | B13: 1665 | C13: 239
A14: Declined Trips | C14: 0
A15: Missed Trips | C15: 0
A16: Late Trips | C16: 0
A17: Date of Trip | C17: Paratransit' tab
A18: Trip Origin Address | C18: Paratransit' tab
A19: Trip Origin Zip Code | C19: Paratransit' tab
A20: Trip Destination Address | C20: Paratransit' tab
A21: Trip Destination Zip Code | C21: Paratransit' tab
A22: Trip Purpose | C22: Paratransit' tab
A23: Trip Distance | C23: Paratransit' tab
A26: Miles and Hours of Service | B26: Fixed Route | C26: Paratransit
A27: Vehicles Operated in Maximum Service | B27: 2 | C27: 2
A28: Scheduled Revenue Hours | B28: 475.92 | C28: 192.50
A29: Actual Vehicle Hours | B29: 497.15 | C29: 195.33
A30: Actual Revenue Hours | B30: 475.92 | C30: 183.90
A31: Actual Vehicle Miles | B31: 5406 | C31: 1321
A32: Actual Revenue Miles | B32: 5150 | C32: 1149
A35: Safety and Customer Service | B35: Fixed Route | C35: Paratransit
A36: Number of Reportable Incidents | B36: 0 | C36: 0
A37: Number of Injuries | B37: 0 | C37: 0
A38: Number of Fatalaties | B38: 0 | C38: 0
A39: Number of Complaints | B39: 0 | C39: 0
A42: Vehicle Maintenance | B42: Fixed Route | C42: Paratransit
A43: Transit Vehicle Breakdowns | B43: 0 | C43: ='Maint. 1473'!C2+'Maint. 1474'!C2+'Maint. 1475'!C2+'Maint. 1476'!C2+'Maint. 1603'!C2+'Maint. 1604'!C2 -> 0
A44: Unit Number | B44: 1473-1476 (4) | C44: 1603 -1604 (2)
A45: Odometer Reading | B45: See sheets | C45: See sheets
A46: Date Out of Service | B46: See sheets | C46: See sheets
A47: Date Return to Service | B47: See sheets | C47: See sheets
A48: Description of Problem | B48: See sheets | C48: See sheets
A49: Vehicle PM Scheduled | B49: See sheets | C49: See sheets
A50: Vehicle PM Performed On-Time | B50: See sheets | C50: See sheets
A53: Service Performance | B53: Fixed Route | C53: Paratransit
A54: Average Trips per Day | B54: =B13/B10 -> 83.250 | C54: =C13/C10 -> 11.950
A55: Average Trips per Revenue Hour | B55: =B13/B30 -> 3.498 | C55: =C13/C30 -> 1.300
A56: Average Trips per Revenue Mile | B56: =B13/B32 -> 0.323 | C56: =C13/C32 -> 0.208

Sheet Paratransit
A1: Trip Code | B1: Client Name | C1: Pickup Time | D1: Delivery Time | E1: Pickup Address | F1: Pickup Zip | G1: Delivery Address | H1: Delivery Zip | I1: Purpose | J1: Trip Miles | K1: Sch. Pickup | L1: Sch. Dropoff | M1: Difference | N1: Daily Hrs | O1: Converted
A2: Delivered | B2: Clemeans, Stacy | C2: 2017-04-03T07:19:00 | D2: 2017-04-03T07:24:00 | E2: 901 Wilson Rd. Apt. 1013 | F2: 77034 | G2: Lowes (1920 Westview Rd | H2: 77034 | I2: Work | J2: 1 | K2: 07:09:00 | L2: =K2+J2/24/12 -> 07:14:00 | M2: =L2-K2 -> 00:05:00
A3: Delivered | B3: Hopcus,Lily | C3: 2017-04-03T07:33:00 | D3: 2017-04-03T07:39:00 | E3: 200 Camelot #300 | F3: 77304 | G3: 233 I-45 North DaVitas Dialysis | H3: 77304 | I3: Dialysis | J3: 2 | K3: 07:30:00 | L3: 07:40:00 | M3: 00:10:00
A4: Delivered | B4: Susan Sumner | C4: 2017-04-03T08:50:00 | D4: 2017-04-03T08:59:00 | E4: 1000 S 1st st. #18 | F4: 77301 | G4: Central Branch Library (104 I-45 N) | H4: 77304 | I4: Library | J4: 2 | K4: 08:45:00 | L4: 08:55:00 | M4: 00:10:00
A5: Delivered | B5: Susan Sumner | C5: 2017-04-03T09:12:00 | D5: 2017-04-03T09:16:00 | E5: Central Branch Library (104 I-45 N) | F5: 77304 | G5: Dollar General 733 West Davis St | H5: 77301 | I5: Shopping | J5: 1 | K5: 09:15:00 | L5: 09:20:00 | M5: 00:05:00
A6: Delivered | B6: Susan Sumner | C6: 2017-04-03T09:43:00 | D6: 2017-04-04T09:52:00 | E6: Dollar General 733 West Davis St | F6: 77301 | G6: Kroger (220 S. Loop 336 West) | H6: 77304 | I6: Shopping | J6: 2 | K6: 09:45:00 | L6: 09:55:00 | M6: 00:10:00
A7: Delivered | B7: Brown, Betty | C7: 2017-04-03T10:00:00 | D7: 2017-04-03T10:15:00 | E7: 1300 Silverdale Dr. Apt. 3001 | F7: 77301 | G7: Kroger (220 S. Loop 336 West) | H7: 77304 | I7: Shopping | J7: 4 | K7: 10:00:00 | L7: 10:20:00 | M7: 00:20:00
A8: Delivered | B8: Jacobo, Manuel | C8: 2017-04-03T10:05:00 | D8: 2017-04-03T10:18:00 | E8: 233 I-45 North DaVitas Dialysis | F8: 77304 | G8: 110 Eloies | H8: 77301 | I8: Dialysis | J8: 2 | K8: 10:00:00 | L8: 10:10:00 | M8: 00:10:00
A9: Delivered | B9: Kessler, Vickie | C9: 2017-04-03T10:22:00 | D9: 2017-04-03T10:33:00 | E9: Kessler, Vickie 1200 Pleasant Dr | F9: 77301 | G9: St. Hope 1414 S Frazier | H9: 77301 | I9: Medical | J9: 3 | K9: 10:15:00 | L9: 10:30:00 | M9: 00:15:00
A10: Delivered | B10: Martin, Joice | C10: 2017-04-03T10:51:00 | D10: 2017-04-03T10:59:00 | E10: 1101 S 7th st. #106 | F10: 77031 | G10: Wells Fargo Bank 516 W Davis St | H10: 77304 | I10: Personal | J10: 2 | K10: 10:45:00 | L10: 10:55:00 | M10: 00:10:00
A11: Delivered | B11: Brown, Betty | C11: 2017-04-03T11:00:00 | D11: 2017-04-03T11:10:00 | E11: Kroger (220 S. Loop 336 West) | F11: 77304 | G11: Walmart (1407 N Loop 336) | H11: 77304 | I11: Shopping | J11: 3 | K11: 11:00:00 | L11: 11:15:00 | M11: 00:15:00
A12: Delivered | B12: Martin, Joice | C12: 2017-04-03T11:02:00 | D12: 2017-04-03T11:08:00 | E12: Wells Fargo Bank 516 W Davis St | F12: 77304 | G12: Cash Advance (440 W. Davis) | H12: 77031 | I12: Personal | J12: 1 | K12: 11:00:00 | L12: 11:05:00 | M12: 00:05:00
A13: Delivered | B13: Martin, Joice | C13: 2017-04-03T11:11:00 | D13: 2017-04-03T11:18:00 | E13: Cash Advance (440 W. Davis) | F13: 77031 | G13: Popeyes (905 W. Davis) | H13: 77301 | I13: Personal | J13: 5 | K13: 11:10:00 | L13: 11:35:00 | M13: 00:25:00
A14: Delivered | B14: Kessler, Vickie | C14: 2017-04-03T11:44:00 | D14: 2017-04-03T11:54:00 | E14: St. Hope 1414 S Frazier | F14: 77301 | G14: 1200 Pleasant Dr | H14: 77301 | I14: Medical | J14: 3 | K14: 11:45:00 | L14: 12:00:00 | M14: 00:15:00
A15: Delivered | B15: Hopcus,Lily | C15: 2017-04-03T12:33:00 | D15: 2017-04-03T12:43:00 | E15: 233 I-45 North DaVitas Dialysis | F15: 77304 | G15: 200 Camelot #300 | H15: 77304 | I15: Dialysis | J15: 2 | K15: 12:30:00 | L15: 12:40:00 | M15: 00:10:00
A16: Delivered | B16: Phillips, Sandra | C16: 2017-04-03T12:59:00 | D16: 2017-04-03T13:09:00 | E16: 2205 N Frazier #43 | F16: 77031 | G16: Goodwill Stores (1102 W. Dallas) | H16: 77301 | I16: Work | J16: 2 | K16: 13:00:00 | L16: 13:10:00 | M16: 00:10:00
A17: Delivered | B17: Brown, Betty | C17: 2017-04-03T13:00:00 | D17: 2017-04-03T13:15:00 | E17: Walgreens 1120 N Loop 336 W | F17: 77304 | G17: Valero Pinecrest/Porter (413 Porter Rd) | H17: 77301 | I17: Shopping | J17: 6 | K17: 13:00:00 | L17: 13:30:00 | M17: 00:30:00
A18: Delivered | B18: Clemeans, Stacy | C18: 2017-04-03T17:02:00 | D18: 2017-04-03T17:12:00 | E18: Lowes (1920 Westview Rd | F18: 77304 | G18: 901 Wilson Rd. Apt. 1013 | H18: 77034 | I18: Work | J18: 1 | K18: 17:02:00 | L18: 17:07:00 | M18: 00:05:00
A19: Delivered | B19: Phillips, Sandra | C19: 2017-04-03T17:39:00 | D19: 2017-04-03T17:50:00 | E19: Goodwill Stores (1102 W. Dallas) | F19: 77301 | G19: 2205 N Frazier #43 | H19: 77031 | I19: Work | J19: 2 | K19: 17:40:00 | L19: 17:50:00 | M19: 00:10:00 | N19: =L19-K3 -> 10:20:00 | O19: =N19*24 -> 10.33
A20: Delivered | B20: Cremeans, Stacy | C20: 2017-04-04T07:30:00 | D20: 2017-04-04T07:40:00 | E20: 901 Wilson Rd. Apt. 1013 | F20: 77301 | G20: Lowes (1920 Westview Rd | H20: 77034 | I20: Work | J20: 1 | K20: 07:15:00 | L20: 07:20:00 | M20: 00:05:00
A21: Delivered | B21: Ware, Willie Jean | C21: 2017-04-04T09:42:00 | D21: 2017-04-04T09:55:00 | E21: Willie Jean Ware (507 Urquhart St) | F21: 77301 | G21: DaVitas Dialysis (233 I-45 North) | H21: 77304 | I21: Dialysis | J21: 2 | K21: 09:40:00 | L21: 09:50:00 | M21: 00:10:00
A22: Delivered | B22: Adams,Michael, Sidney | C22: 2017-04-04T10:04:00 | D22: 2017-04-04T10:13:00 | E22: Adams, Michael Sidney (101 S Woodsway West) | F22: 77301 | G22: DaVitas Dialysis (233 I-45 North) | H22: 77304 | I22: Dialysis | J22: 2 | K22: 10:00:00 | L22: 10:10:00 | M22: 00:10:00
A23: Delivered | B23: Taboada, Rutila | C23: 2017-04-04T10:20:00 | D23: 2017-04-04T10:27:00 | E23: Taboada, Rutila (618 Mill Ave) | F23: 77301 | G23: DaVitas Dialysis (233 I-45 North) | H23: 77304 | I23: Dialysis | J23: 1 | K23: 10:00:00 | L23: 10:05:00 | M23: 00:05:00
A24: Delivered | B24: Brown, Betty | C24: 2017-04-04T10:39:00 | D24: 2017-04-04T10:52:00 | E24: 1300 Silverdale Dr. Apt. 3001 | F24: 77301 | G24: Kroger (220 S. Loop 336 West) | H24: 77304 | I24: Shopping | J24: 4 | K24: 10:00:00 | L24: 10:20:00 | M24: 00:20:00
A25: Delivered | B25: Henry, Stella | C25: 2017-04-04T11:07:00 | D25: 2017-04-04T11:25:00 | E25: Henry, Stella, 2213 N Frazier #1501 | G25: Chamber of Commererce 505 West Davis | H25: 77301 | I25: Personal | J25: 2 | K25: 11:10:00 | L25: 11:20:00 | M25: 00:10:00
A26: Delivered | B26: Henry, Stella | C26: 2017-04-04T11:25:00 | D26: 2017-04-04T11:37:00 | E26: Chamber of Commererce 505 West Davis | F26: 77301 | G26: Henry, Stella, 2213 N Frazier #1501 | H26: 77301 | I26: home | J26: 2 | K26: 11:10:00 | L26: 11:20:00 | M26: 00:10:00 | O26: =N26*24 -> 0.00
A27: Delivered | B27: Brown, Betty | C27: 2017-04-04T11:45:00 | D27: 2017-04-04T11:50:00 | E27: Kroger (220 S. Loop 336 West) | F27: 77304 | G27: Home Depot 1341 W Daves | H27: 77304 | I27: Shopping | J27: 2 | K27: 11:45:00 | L27: 11:55:00 | M27: 00:10:00
A28: Delivered | B28: Cornelius, Sylvia | C28: 2017-04-04T12:13:00 | D28: 2017-04-04T12:21:00 | E28: Cornelius, Sylvia (1300 Silverdale Dr. Apt. 2004) | F28: 77301 | G28: Dollar King 707 East Davis | H28: 7731 | I28: Shopping | J28: 2 | K28: 12:13:00 | L28: 12:23:00 | M28: 00:10:00 | O28: =N28*24 -> 0.00
A29: Delivered | B29: Minter, Gregory | C29: 2017-04-04T12:30:00 | D29: 2017-04-04T12:50:00 | E29: 291 Scarborough #1305 | F29: 7731 | G29: 606 Everett | H29: 77301 | I29: Medical | J29: 3 | K29: 12:30:00 | L29: 12:45:00 | M29: 00:15:00
A30: Delivered | B30: Brown, Betty | C30: 2017-04-04T12:55:00 | D30: 2017-04-04T13:19:00 | E30: Home Depot 1341 W Daves | F30: 77304 | G30: 1300 Silverdale Dr. Apt. 3001 | H30: 77301 | I30: home | J30: 4 | K30: 12:55:00 | L30: 13:15:00 | M30: 00:20:00
A31: Delivered | B31: Cornelius, Sylvia | C31: 2017-04-04T13:08:00 | D31: 2017-04-04T13:21:00 | E31: Dollar King 707 East Davis | F31: 77301 | G31: Cornelius, Sylvia (1300 Silverdale Dr. Apt. 2004) | H31: 77301 | I31: home | J31: 2 | K31: 13:00:00 | L31: 13:10:00 | M31: 00:10:00
A32: Delivered | B32: Minter, Gregory | C32: 2017-04-04T13:30:00 | D32: 2017-04-04T13:40:00 | E32: 606 Everett | F32: 77301 | G32: 291 Scarborough #1305 | H32: 77301 | I32: home | J32: 3 | K32: 13:30:00 | L32: 13:45:00 | M32: 00:15:00
A33: Delivered | B33: Ware, Willie Jean | C33: 2017-04-04T13:53:00 | D33: 2017-04-04T13:57:00 | E33: DaVitas Dialysis (233 I-45 North) | F33: 77304 | G33: Willie Jean Ware (507 Urquhart St) | H33: 77301 | I33: Dialysis | J33: 2 | K33: 13:50:00 | L33: 14:00:00 | M33: 00:10:00
A34: Delivered | B34: Taboada, Rutila | C34: 2017-04-04T14:24:00 | D34: 2017-04-04T14:34:00 | E34: DaVitas Dialysis (233 I-45 North) | F34: 77304 | G34: Taboada, Rutila (618 Mill Ave) | H34: 77301 | I34: home | J34: 1 | K34: 14:00:00 | L34: 14:05:00 | M34: 00:05:00
A35: Delivered | B35: Adams,Michael, Sidney | C35: 2017-04-04T14:42:00 | D35: 2017-04-04T14:56:00 | E35: DaVitas Dialysis (233 I-45 North) | F35: 77304 | G35: Adams, Michael Sidney (101 S Woodsway West) | H35: 77301 | I35: home | J35: 2 | K35: 14:40:00 | L35: 14:50:00 | M35: 00:10:00
A36: Delivered | B36: Cremeans, Stacy | C36: 2017-04-04T17:00:00 | D36: 2017-04-04T17:05:00 | E36: Lowes (1920 Westview Rd | F36: 77034 | G36: 901 Wilson Rd. Apt. 1013 | H36: 77301 | I36: Work | J36: 1 | K36: 17:00:00 | L36: 17:05:00 | M36: 00:05:00 | N36: =L36-K20 -> 09:50:00 | O36: =N36*24 -> 9.83
A37: Delivered | B37: Cremeans, Stacy | C37: 2017-04-05T07:17:00 | D37: 2017-04-05T07:23:00 | E37: Cremeans, Stacy, 901 Wilson Rd. Apt 1013 | F37: 77301 | G37: Lowes (1920 Westview Rd | H37: 77034 | I37: Work | J37: 1 | K37: 07:30:00 | L37: 07:35:00 | M37: 00:05:00
A38: Delivered | B38: Hopcus,Lily | C38: 2017-04-05T07:41:00 | D38: 2017-04-05T07:47:00 | E38: 200 Camelot #300 | F38: 77304 | G38: 233 I-45 North DaVitas Dialysis | H38: 77304 | I38: Dialysis | J38: 2 | K38: 07:30:00 | L38: 07:40:00 | M38: 00:10:00
A39: Delivered | B39: Kessler, Vickie | C39: 2017-04-05T08:30:00 | D39: 2017-04-05T08:42:00 | E39: Kessler, Vickie 1200 Pleasant Dr | F39: 77301 | G39: Home Depot 1341 W Daves | H39: 77304 | I39: Shopping | J39: 2 | K39: 08:30:00 | L39: 08:40:00 | M39: 00:10:00
A40: Delivered | B40: Jacobo, Manuel | C40: 2017-04-05T09:19:00 | D40: 2017-04-05T10:01:00 | E40: 233 I-45 North DaVitas Dialysis | F40: 77304 | G40: Jacobo,Manuel (110 Eloies) | H40: 77301 | I40: Dialysis | J40: 2 | K40: 10:00:00 | L40: 10:10:00 | M40: 00:10:00
A41: Delivered | B41: Brown, Betty | C41: 2017-04-05T10:11:00 | D41: 2017-04-05T10:45:00 | E41: 1300 Silverdale Dr. Apt. 3001 | F41: 77301 | G41: Nova (1150 N Loop 336) | H41: 77304 | I41: Medical | J41: 6 | K41: 10:00:00 | L41: 10:30:00 | M41: 00:30:00
A42: Delivered | B42: Brown, Betty | C42: 2017-04-05T10:50:00 | D42: 2017-04-05T10:56:00 | E42: Nova (1150 N Loop 336) | F42: 77304 | G42: Ross 2936 I-45 North | H42: 77304 | I42: Shopping | J42: 2 | K42: 12:00:00 | L42: 12:10:00 | M42: 00:10:00
A43: Delivered | B43: Brown, Betty | C43: 2017-04-05T11:25:00 | D43: 2017-04-05T11:40:00 | E43: Ross 2936 I-45 North | F43: 77304 | G43: 1300 Silverdale Dr. Apt. 3001 | H43: 77301 | I43: home | J43: 6 | K43: 13:00:00 | L43: 13:30:00 | M43: 00:30:00
A44: Delivered | B44: Kessler, Vickie | C44: 2017-04-05T11:53:00 | D44: 2017-04-05T12:05:00 | E44: Home Depot 1341 W Daves | F44: 77304 | G44: Kessler, Vickie 1200 Pleasant Dr | H44: 77301 | I44: home | J44: 2 | K44: 12:00:00 | L44: 12:10:00 | M44: 00:10:00
A45: Delivered | B45: Hopcus, Lilly | C45: 2017-04-05T12:54:00 | D45: 2017-04-05T12:35:00 | E45: 233 I-45 North DaVitas Dialysis | F45: 77304 | G45: 200 Camelot #300 | H45: 77304 | I45: home | J45: 1 | K45: 12:30:00 | L45: 12:35:00 | M45: 00:05:00
A46: Delivered | B46: Hill, Lillie | C46: 2017-04-05T12:56:00 | D46: 2017-04-05T13:10:00 | E46: Lillie Hill (500 Hickerson #1004) | F46: 77301 | G46: River Park Dialysis 2010 s Loop | H46: 77301 | I46: Dialysis | J46: 3 | K46: 12:45:00 | L46: 13:00:00 | M46: 00:15:00
A47: Delivered | B47: Phillips, Sandra | C47: 2017-04-05T13:27:00 | D47: 2017-04-05T13:37:00 | E47: 2205 N Frazier #43 | F47: 77031 | G47: Goodwill Stores (1102 W. Dallas) | H47: 77301 | I47: Work | J47: 2 | K47: 12:45:00 | L47: 12:55:00 | M47: 00:10:00
A48: Delivered | B48: Smith, Alice J. | C48: 2017-04-05T15:27:00 | D48: 2017-04-05T15:43:00 | E48: Smith, Alice (617 Ave. I) | F48: 77301 | G48: Smart financial Credit Union (3201 W Davis st.) | H48: 77301 | I48: Personal | J48: 3 | K48: 15:30:00 | L48: 15:45:00 | M48: 00:15:00
A49: Delivered | B49: Smith, Alice J. | C49: 2017-04-05T15:55:00 | D49: 2017-04-05T16:07:00 | E49: Smart financial Credit Union (3201 W Davis st.) | F49: 77301 | G49: Smith, Alice (617 Ave. I) | H49: 77301 | I49: home | J49: 3 | K49: 16:30:00 | L49: 16:45:00 | M49: 00:15:00
A50: Delivered | B50: Cremeans, Stacy | C50: 2017-04-05T17:02:00 | D50: 2017-04-05T17:10:00 | E50: Lowes (1920 Westview Rd | F50: 77034 | G50: 901 Wilson Rd. Apt. 1013 | H50: 77301 | I50: Work | J50: 1 | K50: 17:00:00 | L50: 17:05:00 | M50: 00:05:00
A51: Delivered | B51: Phillips, Sandra | C51: 2017-04-05T17:33:00 | D51: 2017-04-05T17:48:00 | E51: Goodwill Stores (1102 W. Dallas) | F51: 77301 | G51: 2205 N Frazier #43 | H51: 77031 | I51: Work | J51: 2 | K51: 17:40:00 | L51: 17:50:00 | M51: 00:10:00
A52: delivered | B52: Hill, Lillie | C52: 2017-04-05T17:58:00 | D52: 2017-04-05T18:12:00 | E52: River Park Dialysis 2010 s Loop | F52: 77301 | G52: Lillie Hill (500 Hickerson #1004) | H52: 77301 | I52: home | J52: 3 | K52: 17:45:00 | L52: 18:00:00 | M52: 00:15:00 | N52: =L52-K37 -> 10:30:00 | O52: =N52*24 -> 10.50
A53: Delivered | B53: Kessler, Vickie | C53: 2017-04-06T07:00:00 | D53: 2017-04-06T07:11:00 | E53: Kessler, Vickie 1200 Pleasant Dr | F53: 77301 | G53: Walmart (1407 N Loop 336) | H53: 77304 | I53: Shopping | J53: 3 | K53: 07:00:00 | L53: 07:15:00 | M53: 00:15:00 | O53: 0.00
A54: Delivered | B54: Cremeans, Stacy | C54: 2017-04-06T07:19:00 | D54: 2017-04-06T07:25:00 | E54: Cremeans, Stacy, 901 Wilson Rd. Apt 1013 | F54: 77301 | G54: Lowes (1920 Westview Rd | H54: 77034 | I54: Work | J54: 1 | K54: 07:30:00 | L54: 07:35:00 | M54: 00:05:00 | O54: 0.00
A55: Delivered | B55: Kessler, Vickie | C55: 2017-04-06T08:17:00 | D55: 2017-04-06T08:22:00 | E55: Walmart (1407 N Loop 336) | F55: 77304 | G55: 99 cent Store 1420 Loop 336 | H55: 77034 | I55: Shopping | J55: 1 | K55: 09:00:00 | L55: 09:05:00 | M55: 00:05:00 | O55: 0.00
A56: Delivered | B56: Kessler, Vickie | C56: 2017-04-06T09:13:00 | D56: 2017-04-06T09:20:00 | E56: 99 cent Store 1420 Loop 336 | F56: 77034 | G56: Kessler, Vickie 1200 Pleasant Dr | H56: 77301 | I56: home | J56: 1 | K56: 09:15:00 | L56: 09:20:00 | M56: 00:05:00 | O56: 0.00
A57: Delivered | B57: Ware, Willie Jean | C57: 2017-04-06T09:36:00 | D57: 2017-04-06T09:44:00 | E57: Willie Jean Ware (507 Urquhart St) | F57: 77301 | G57: DaVitas Dialysis (233 I-45 North) | H57: 77304 | I57: Dialysis | J57: 2 | K57: 09:45:00 | L57: 09:55:00 | M57: 00:10:00 | O57: 0.00
A58: Delivered | B58: Adams, Michael Sidney | C58: 2017-04-06T10:11:00 | D58: 2017-04-06T10:20:00 | E58: Adams, Michael Sidney (101 S Woodsway West) | F58: 77301 | G58: DaVitas Dialysis (233 I-45 North) | H58: 77304 | I58: Dialysis | J58: 2 | K58: 09:55:00 | L58: 10:05:00 | M58: 00:10:00 | O58: 0.00
A59: Delivered | B59: Taboada, Rutila | C59: 2017-04-06T10:25:00 | D59: 2017-04-06T10:31:00 | E59: Taboada, Rutila (618 Mill Ave) | F59: 77301 | G59: DaVitas Dialysis (233 I-45 North) | H59: 77304 | I59: Dialysis | J59: 1 | K59: 10:00:00 | L59: 10:05:00 | M59: 00:05:00 | O59: =N59*24 -> 0.00
A60: Delivered | B60: Ware, Willie Jean | C60: 2017-04-06T14:00:00 | D60: 2017-04-06T14:05:00 | E60: DaVitas Dialysis (233 I-45 North) | F60: 77304 | G60: Willie Jean Ware (507 Urquhart St) | H60: 77301 | I60: home | J60: 2 | K60: 14:10:00 | L60: 14:20:00 | M60: 00:10:00 | O60: =N60*24 -> 0.00
A61: Delivered | B61: Taboada, Rutila | C61: 2017-04-06T14:13:00 | D61: 2017-04-06T14:20:00 | E61: DaVitas Dialysis (233 I-45 North) | F61: 77304 | G61: Taboada, Rutila (618 Mill Ave) | H61: 77301 | I61: home | J61: 1 | K61: 14:00:00 | L61: 14:05:00 | M61: 00:05:00 | O61: =N61*24 -> 0.00
A62: Delivered | B62: Adams, Michael Sidney | C62: 2017-04-06T14:26:00 | D62: 2017-04-06T14:39:00 | E62: DaVitas Dialysis (233 I-45 North) | F62: 77304 | G62: Adams, Michael Sidney (101 S Woodsway West) | H62: 77301 | I62: home | J62: 2 | K62: 14:15:00 | L62: 14:25:00 | M62: 00:10:00 | O62: =N62*24 -> 0.00
A63: Delivered | B63: Phillips, Sandra | C63: 2017-04-06T15:36:00 | D63: 2017-04-06T15:38:00 | E63: Phillips, Sandra 22055 N Frazier #43 | F63: 77301 | G63: 100 Medical Center Blvd | H63: 77034 | I63: Medical | J63: 4 | K63: 15:30:00 | L63: 15:50:00 | M63: 00:20:00 | O63: =N63*24 -> 0.00
A64: Delivered | B64: Phillips, Sandra | C64: 2017-04-06T15:47:00 | D64: 2017-04-06T16:08:00 | E64: 100 Medical Center Blvd | F64: 77034 | G64: Phillips, Sandra 22055 N Frazier #43 | H64: 77301 | I64: home | J64: 5 | K64: 16:45:00 | L64: 17:10:00 | M64: 00:25:00
A65: Delivered | B65: Cremeans, Stacy | C65: 2017-04-06T17:03:00 | D65: 2017-04-06T17:08:00 | E65: Lowes (1920 Westview Rd | F65: 77034 | G65: Cremeans, Stacy, 901 Wilson Rd. Apt 1013 | H65: 77301 | I65: home | J65: 1 | K65: 17:00:00 | L65: 17:05:00 | M65: 00:05:00 | N65: =L65-K33 -> 03:15:00 | O65: =N65*24 -> 3.25
A66: Delivered | B66: Cremeans, Stacy | C66: 2017-04-07T07:20:00 | D66: 2017-04-07T07:26:00 | E66: Cremeans, Stacy, 901 Wilson Rd. Apt 1013 | F66: 77301 | G66: Lowes (1920 Westview Rd | H66: 77034 | I66: Work | J66: 1 | K66: 07:30:00 | L66: =K66+J66/24/12 -> 07:35:00 | M66: =L66-K66 -> 00:05:00 | O66: 0.00
A67: Delivered | B67: Hopcus,Lily | C67: 2017-04-07T08:00:00 | D67: 2017-04-07T08:06:00 | E67: Hopcus, Lilly 200 Camelot #300 | F67: 77304 | G67: 233 I-45 North DaVitas Dialysis | H67: 77304 | I67: Dialysis | J67: 2 | K67: 08:00:00 | L67: 08:10:00 | M67: 00:10:00 | O67: 0.00
A68: Delivered | B68: Taylor Jr, Milton | C68: 2017-04-07T08:58:00 | D68: 2017-04-07T09:06:00 | E68: Taylor, Milton Jr (500 Hickerson #903) | F68: 77301 | G68: Post Office (809 W Dallas St) | H68: 77301 | I68: Personal | J68: 2 | K68: 09:00:00 | L68: 09:10:00 | M68: 00:10:00 | O68: 0.00
A69: Delivered | B69: Taylor Jr, Milton | C69: 2017-04-07T09:12:00 | D69: 2017-04-07T09:22:00 | E69: Post Office (809 W Dallas St) | F69: 77301 | G69: Sam's Club 200 Westview Blvd | H69: 77031 | I69: Shopping | J69: 2 | K69: 10:00:00 | L69: 10:10:00 | M69: 00:10:00 | O69: 0.00
A70: Delivered | B70: Jacobo, Manuel | C70: 2017-04-07T09:52:00 | D70: 2017-04-07T10:05:00 | E70: DaVitas Dialysis (233 I-45 North) | F70: 77304 | G70: Jacobo, Manuel 110 Eloies | H70: 77301 | I70: home | J70: 2 | K70: 10:00:00 | L70: 10:10:00 | M70: 00:10:00 | O70: 0.00
A71: Delivered | B71: Smith, Alice J. | C71: 2017-04-07T12:04:00 | D71: 2017-04-07T12:23:00 | E71: Smith, Alice (617 Ave. I) | F71: 77301 | G71: hobbi Lobby 1217 Loop 336 N | H71: 77301 | I71: Shopping | J71: 4 | K71: 12:00:00 | L71: 12:20:00 | M71: 00:20:00 | O71: 0.00
A72: Delivered | B72: Hopcus,Lily | C72: 2017-04-07T12:33:00 | D72: 2017-04-07T12:49:00 | E72: 233 I-45 North DaVitas Dialysis | F72: 77304 | G72: 200 Camelot #300 | H72: 77304 | I72: Dialysis | J72: 2 | K72: 12:30:00 | L72: 12:40:00 | M72: 00:10:00
A73: Delivered | B73: Hopcus,Lilly | C73: 2017-04-07T12:33:00 | D73: 2017-04-07T12:44:00 | E73: DaVitas Dialysis (233 I-45 North) | F73: 77304 | G73: 200 Camelot #300 | H73: 77304 | I73: home | J73: 1 | K73: 12:30:00 | L73: 12:35:00 | M73: 00:05:00 | O73: =N73*24 -> 0.00
A74: Delivered | B74: Hill, Lillie | C74: 2017-04-07T12:54:00 | D74: 2017-04-07T13:05:00 | E74: Lillie Hill (500 Hickerson #1004) | F74: 77301 | G74: River Park Dialysis 2010 s Loop | H74: 77301 | I74: Dialysis | J74: 3 | K74: 12:45:00 | L74: 13:00:00 | M74: 00:15:00 | O74: 0.00
A75: Delivered | B75: Phillips, Sandra | C75: 2017-04-07T13:17:00 | D75: 2017-04-07T13:27:00 | E75: Phillips, Sandra 2205 N Frazier #43 | F75: 77031 | G75: Goodwill Stores (1102 W. Dallas) | H75: 77301 | I75: Work | J75: 3 | K75: 12:45:00 | L75: 13:00:00 | M75: 00:15:00 | O75: 0.00
A76: Delivered | B76: Smith, Alice J. | C76: 2017-04-07T13:35:00 | D76: 2017-04-07T13:50:00 | E76: 99 cent Store 1420 Loop 336 | F76: 77304 | G76: Smith, Alice (617 Ave. I) | H76: 77301 | I76: home | J76: 5 | K76: 14:00:00 | L76: 14:25:00 | M76: 00:25:00 | O76: 0.00
A77: Delivered | B77: Taylor Jr, Milton | C77: 2017-04-07T14:53:00 | D77: 2017-04-07T15:11:00 | E77: Walmart (1407 N Loop 336) | F77: 77304 | G77: Taylor, Milton Jr (500 Hickerson #903) | H77: 77301 | I77: home | J77: 3 | K77: 16:00:00 | L77: 16:15:00 | M77: 00:15:00 | O77: 0.00
A78: Delivered | B78: Cremeans, Stacy | C78: 2017-04-07T16:05:00 | D78: 2017-04-07T16:11:00 | E78: Lowes (1920 Westview Rd | F78: 77034 | G78: Cremeans, Stacy, 901 Wilson Rd. Apt 1013 | H78: 77301 | I78: home | J78: 1 | K78: 16:00:00 | L78: 16:05:00 | M78: 00:05:00 | O78: 0.00
A79: Delivered | B79: Phillips, Sandra | C79: 2017-04-07T17:34:00 | D79: 2017-04-07T17:42:00 | E79: Goodwill Stores (1102 W. Dallas) | F79: 77301 | G79: 2205 N Frazier #43 | H79: 77031 | I79: home | J79: 2 | K79: 17:30:00 | L79: 17:40:00 | M79: 00:10:00
A80: Delivered | B80: Hill, Lillie | C80: 2017-04-07T18:07:00 | D80: 2017-04-07T18:16:00 | E80: River Park Dialysis 2010 s Loop | F80: 77301 | G80: Lillie Hill (500 Hickerson #1004) | H80: 77301 | I80: home | J80: 3 | K80: 17:45:00 | L80: 18:00:00 | M80: 00:15:00 | N80: =L80-K66 -> 10:30:00 | O80: =N80*24 -> 10.50
A81: Delivered | B81: Cremeans, Stacy | C81: 2017-04-10T07:18:00 | D81: 2017-04-10T07:24:00 | E81: Cremeans, Stacy, 901 Wilson Rd. Apt 1013 | F81: 77301 | G81: Lowes (1920 Westview Rd | H81: 77034 | I81: Work | J81: 1 | K81: 07:30:00 | L81: 07:35:00 | M81: 00:05:00
A82: Delivered | B82: Hopcus,Lily | C82: 2017-04-10T07:53:00 | D82: 2017-04-10T08:01:00 | E82: Hopcus, Lilly 200 Camelot #300 | F82: 77304 | G82: 233 I-45 North DaVitas Dialysis | H82: 77304 | I82: Dialysis | J82: 2 | K82: 07:30:00 | L82: 07:40:00 | M82: 00:10:00 | O82: =N82*24 -> 0.00
A83: Delivered | B83: Jacobo, Manuel | C83: 2017-04-10T10:06:00 | D83: 2017-04-10T10:19:00 | E83: DaVitas Dialysis (233 I-45 North) | F83: 77304 | G83: Jacobo, Manuel 110 Eloies | H83: 77301 | I83: home | J83: 2 | K83: 10:00:00 | L83: 10:10:00 | M83: 00:10:00 | O83: =N83*24 -> 0.00
A84: Delivered | B84: Hopcus,Lily | C84: 2017-04-10T12:38:00 | D84: 2017-04-10T12:47:00 | E84: 233 I-45 North DaVitas Dialysis | F84: 77304 | G84: 200 Camelot #300 | H84: 77304 | I84: Dialysis | J84: 2 | K84: 12:30:00 | L84: 12:40:00 | M84: 00:10:00 | O84: =N84*24 -> 0.00
A85: Delivered | B85: Hill, Lillie | C85: 2017-04-10T13:01:00 | D85: 2017-04-10T13:11:00 | E85: Lillie Hill (500 Hickerson #1004) | F85: 77301 | G85: River Park Dialysis 2010 s Loop | H85: 77301 | I85: Dialysis | J85: 3 | K85: 12:45:00 | L85: 13:00:00 | M85: 00:15:00 | O85: =N85*24 -> 0.00
A86: Delivered | B86: Brown, Betty | C86: 2017-04-10T13:30:00 | D86: 2017-04-10T13:40:00 | E86: Brown, Betty 1300 Silverdale Dr. Apt. 3001 | F86: 77301 | G86: Conroe Regional Medical Center (504 Medical Center Blvd) | H86: 77304 | I86: Medical | J86: 2 | K86: 13:00:00 | L86: 13:10:00 | M86: 00:10:00 | O86: =N86*24 -> 0.00
A87: Delivered | B87: Phillips, Sandra | C87: 2017-04-10T13:38:00 | D87: 2017-04-10T13:48:00 | E87: Phillips, Sandra 2205 N Frazier #43 | F87: 77301 | G87: Goodwill Stores (1102 W. Dallas) | H87: 77301 | I87: Work | J87: 3 | K87: 13:30:00 | L87: 13:45:00 | M87: 00:15:00
A88: Delivered | B88: Brown, Betty | C88: 2017-04-10T14:27:00 | D88: 2017-04-10T14:30:00 | E88: Conroe Regional Medical Center (504 Medical Center Blvd) | F88: 77304 | G88: Avery Eye Clinic (400 S Loop 336 W 77304) | H88: 7734 | I88: Medical | J88: 2 | K88: 13:45:00 | L88: 13:55:00 | M88: 00:10:00 | O88: =N88*24 -> 0.00
A89: Delivered | B89: Brown, Betty | C89: 2017-04-10T15:38:00 | D89: 2017-04-10T16:00:00 | E89: Avery Eye Clinic (400 S Loop 336 W 77304) | F89: 7734 | G89: Kroger (220 S. Loop 336 West) | H89: 77304 | I89: Shopping | J89: 1 | K89: 15:30:00 | L89: 15:35:00 | M89: 00:05:00 | O89: =N89*24 -> 0.00
A90: Delivered | B90: Brown, Betty | C90: 2017-04-10T16:36:00 | D90: 2017-04-10T16:49:00 | E90: Kroger (220 S. Loop 336 West) | F90: 77304 | G90: Brown, Betty 1300 Silverdale Dr. Apt. 3001 | H90: 77301 | I90: home | J90: 4 | K90: 16:03:00 | L90: 16:23:00 | M90: 00:20:00
A91: Delivered | B91: Cremeans, Stacy | C91: 2017-04-10T17:02:00 | D91: 2017-04-10T17:08:00 | E91: Lowes (1920 Westview Rd | F91: 77034 | G91: Cremeans, Stacy, 901 Wilson Rd. Apt 1013 | H91: 77301 | I91: home | J91: 1 | K91: 17:00:00 | L91: 17:05:00 | M91: 00:05:00 | O91: =N91*24 -> 0.00
A92: Delivered | B92: Phillips, Sandra | C92: 2017-04-10T17:33:00 | D92: 2017-04-10T17:42:00 | E92: Goodwill Stores (1102 W. Dallas) | F92: 77301 | G92: Phillips, Sandra 2205 N Frazier #43 | H92: 77031 | I92: home | J92: 3 | K92: 17:30:00 | L92: 17:45:00 | M92: 00:15:00
A93: Delivered | B93: Hill, Lillie | C93: 2017-04-10T18:07:00 | D93: 2017-04-10T18:16:00 | E93: River Park Dialysis 2010 s Loop | F93: 77301 | G93: Lillie Hill (500 Hickerson #1004) | H93: 77301 | I93: home | J93: 3 | K93: 17:45:00 | L93: 18:00:00 | M93: 00:15:00 | N93: =L93-K81 -> 10:30:00 | O93: =N93*24 -> 10.50
A94: Delivered | B94: Cremeans, Stacy | C94: 2017-04-11T07:21:00 | D94: 2017-04-11T07:26:00 | E94: Cremeans, Stacy, 901 Wilson Rd. Apt 1013 | F94: 77301 | G94: Lowes (1920 Westview Rd | H94: 770304 | I94: Work | J94: 1 | K94: 07:30:00 | L94: 07:35:00 | M94: 00:05:00 | O94: 0.00
A95: Delivered | B95: Kessler, Vickie | C95: 2017-04-11T07:39:00 | D95: 2017-04-11T07:46:00 | E95: Kessler, Vickie 1200 Pleasant Dr | F95: 77301 | G95: Peacan Tree 4000 S 1st St | H95: 77301 | I95: Personal | J95: 1 | K95: 07:30:00 | L95: 07:35:00 | M95: 00:05:00 | O95: 0.00
A96: Delivered | B96: Wallace, Charles | C96: 2017-04-11T09:01:00 | D96: 2017-04-11T09:07:00 | E96: Wallace, Charles (2213 N Frazier #1301) | F96: 77301 | G96: Kroger North Loop (2222 I-45 North) | H96: 77301 | I96: Work | J96: 1 | K96: 09:00:00 | L96: 09:05:00 | M96: 00:05:00 | O96: 0.00
A97: Delivered | B97: Ware, Willie Jean | C97: 2017-04-11T09:33:00 | D97: 2017-04-11T09:39:00 | E97: Willie Jean Ware (507 Urquhart St) | F97: 77301 | G97: DaVitas Dialysis (233 I-45 North) | H97: 77304 | I97: Dialysis | J97: 2 | K97: 09:45:00 | L97: 09:55:00 | M97: 00:10:00 | O97: 0.00
A98: Delivered | B98: Adams, Michael Sidney | C98: 2017-04-11T09:47:00 | D98: 2017-04-11T09:55:00 | E98: Adams, Michael Sidney (101 S Woodsway West) | F98: 77301 | G98: DaVitas Dialysis (233 I-45 North) | H98: 77304 | I98: Dialysis | J98: 2 | K98: 09:55:00 | L98: 10:05:00 | M98: 00:10:00 | O98: 0.00
A99: Delivered | B99: Taboada, Rutila | C99: 2017-04-11T10:03:00 | D99: 2017-04-11T10:11:00 | E99: Taboada, Rutila (618 Mill Ave) | F99: 77301 | G99: DaVitas Dialysis (233 I-45 North) | H99: 77304 | I99: Dialysis | J99: 1 | K99: 10:00:00 | L99: 10:05:00 | M99: 00:05:00 | O99: 0.00
A100: Delivered | B100: Kessler, Vickie | C100: 2017-04-11T10:18:00 | D100: 2017-04-11T10:25:00 | E100: Peacan Tree 4000 S 1st St | F100: 77301 | G100: Kessler, Vickie 1200 Pleasant Dr | H100: 77301 | I100: home | J100: 1 | K100: 08:30:00 | L100: 08:35:00 | M100: 00:05:00
A101: Delivered | B101: Ware, Willie Jean | C101: 2017-04-11T13:57:00 | D101: 2017-04-11T14:06:00 | E101: DaVitas Dialysis (233 I-45 North) | F101: 77304 | G101: Willie Jean Ware (507 Urquhart St) | H101: 77301 | I101: home | J101: 2 | K101: 14:10:00 | L101: 14:20:00 | M101: 00:10:00 | O101: =N101*24 -> 0.00
A102: Delivered | B102: Adams, Michael Sidney | C102: 2017-04-11T14:20:00 | D102: 2017-04-11T14:32:00 | E102: DaVitas Dialysis (233 I-45 North) | F102: 77304 | G102: Adams, Michael Sidney (101 S Woodsway West) | H102: 77301 | I102: home | J102: 2 | K102: 14:15:00 | L102: 14:25:00 | M102: 00:10:00 | O102: 0.00
A103: Delivered | B103: Taboada, Rutila | C103: 2017-04-11T14:44:00 | D103: 2017-04-11T14:53:00 | E103: DaVitas Dialysis (233 I-45 North) | F103: 77304 | G103: Taboada, Rutila (618 Mill Ave) | H103: 77301 | I103: home | J103: 1 | K103: 14:00:00 | L103: 14:05:00 | M103: 00:05:00 | N103: =L103-K94 -> 06:35:00 | O103: 6.58
A104: Delivered | B104: Cremeans, Stacy | C104: 2017-04-12T07:18:00 | D104: 2017-04-12T07:24:00 | E104: Cremeans, Stacy, 901 Wilson Rd. Apt 1013 | F104: 77301 | G104: Lowes (1920 Westview Rd | H104: 770304 | I104: Work | J104: 1 | K104: 07:30:00 | L104: 07:35:00 | M104: 00:05:00 | O104: 0.00
A105: Delivered | B105: Hopcus, Lilly | C105: 2017-04-12T07:56:00 | D105: 2017-04-12T08:02:00 | E105: Hopcus, Lilly 200 Camelot #300 | F105: 77304 | G105: 233 I-45 North DaVitas Dialysis | H105: 77304 | I105: Dialysis | J105: 2 | K105: 08:00:00 | L105: 08:10:00 | M105: 00:10:00 | O105: 0.00
A106: Delivered | B106: Jacobo, Manuel | C106: 2017-04-12T09:45:00 | D106: 2017-04-12T09:58:00 | E106: DaVitas Dialysis (233 I-45 North) | F106: 77304 | G106: Jacobo, Manuel 110 Eloies | H106: 77301 | I106: home | J106: 2 | K106: 10:00:00 | L106: 10:10:00 | M106: 00:10:00 | O106: 0.00
A107: Delivered | B107: Brown, Betty | C107: 2017-04-12T10:08:00 | D107: 2017-04-12T10:21:00 | E107: Brown, Betty 1300 Silverdale Dr. Apt. 3001 | F107: 77301 | G107: Kroger (220 S. Loop 336 West) | H107: 77304 | I107: Shopping | J107: 3 | K107: 10:00:00 | L107: 10:15:00 | M107: 00:15:00 | O107: 0.00
A108: Delivered | B108: Brown, Betty | C108: 2017-04-12T10:33:00 | D108: 2017-04-12T10:44:00 | E108: Kroger (220 S. Loop 336 West) | F108: 77304 | G108: Brown, Betty 1300 Silverdale Dr. Apt. 3001 | H108: 77301 | I108: home | J108: 1 | K108: 12:00:00 | L108: 12:05:00 | M108: 00:05:00 | O108: 0.00
A109: Delivered | B109: Hopcus,Lilly | C109: 2017-04-12T12:08:00 | D109: 2017-04-12T12:21:00 | E109: 233 I-45 North DaVitas Dialysis | F109: 77304 | G109: 200 Camelot #300 | H109: 77304 | I109: home | J109: 2 | K109: 12:30:00 | L109: 12:40:00 | M109: 00:10:00 | O109: 0.00
A110: Delivered | B110: Mable, Gill | C110: 2017-04-12T12:41:00 | D110: 2017-04-12T12:57:00 | E110: Mable, Gill 2213 North Frazier | F110: 77301 | G110: Tri-County 233 Sgt. Ed Holcomb Blvd. | H110: 77301 | I110: Medical | J110: 4 | K110: 12:45:00 | L110: 13:05:00 | M110: 00:20:00 | O110: 0.00
A111: Delivered | B111: Phillips, Sandra | C111: 2017-04-12T13:27:00 | D111: 2017-04-12T13:40:00 | E111: Phillips, Sandra 2205 N Frazier #43 | F111: 77301 | G111: Goodwill Stores (1102 W. Dallas) | H111: 77301 | I111: Work | J111: 3 | K111: 13:30:00 | L111: 13:45:00 | M111: 00:15:00 | O111: 0.00
A112: Delivered | B112: Mable, Gill | C112: 2017-04-12T14:15:00 | D112: 2017-04-12T14:36:00 | E112: Tri-County 233 Sgt. Ed Holcomb Blvd. | G112: Mable, Gill 2213 North Frazier | H112: 77301 | I112: home | J112: 4 | K112: 15:00:00 | L112: 15:20:00 | M112: 00:20:00 | O112: 0.00
A113: Delivered | B113: Cremeans, Stacy | C113: 2017-04-12T17:02:00 | D113: 2017-04-12T17:08:00 | E113: Lowes (1920 Westview Rd | F113: 770304 | G113: Cremeans, Stacy, 901 Wilson Rd. Apt 1013 | H113: 77301 | I113: home | J113: 2 | K113: 13:30:00 | L113: 13:40:00 | M113: 00:10:00 | O113: 0.00
A114: Delivered | B114: Phillips, Sandra | C114: 2017-04-12T17:31:00 | D114: 2017-04-12T17:43:00 | E114: Goodwill Stores (1102 W. Dallas) | F114: 77301 | G114: Phillips, Sandra 2205 N Frazier #43 | H114: 77031 | I114: home | J114: 3 | K114: 17:30:00 | L114: 17:45:00 | M114: 00:15:00 | N114: =L114-K104 -> 10:15:00 | O114: 10.25
A115: Delivered | B115: Cremeans, Stacy | C115: 2017-04-13T07:20:00 | D115: 2017-04-13T07:26:00 | E115: Cremeans, Stacy, 901 Wilson Rd. Apt 1013 | F115: 77301 | G115: Lowes (1920 Westview Rd | H115: 770304 | I115: Work | J115: 1 | K115: 07:30:00 | L115: 07:35:00 | M115: 00:05:00 | O115: 0.00
A116: Delivered | B116: Kessler, Vickie | C116: 2017-04-13T07:38:00 | D116: 2017-04-13T07:51:00 | E116: Kessler, Vickie 1200 Pleasant Dr | F116: 77301 | G116: St. Hope 1414 S Frazier | H116: 77301 | I116: Medical | J116: 3 | K116: 08:00:00 | L116: 08:15:00 | M116: 00:15:00 | O116: 0.00
A117: Delivered | B117: Wallace, Charles | C117: 2017-04-13T08:06:00 | D117: 2017-04-13T08:12:00 | E117: Wallace, Charles (2213 N Frazier #1301) | F117: 77301 | G117: Kroger North Loop 336 (2222 I-45 North) | H117: 77304 | I117: Shopping | J117: 1 | K117: 08:15:00 | L117: 08:20:00 | M117: 00:05:00 | O117: 0.00
A118: Delivered | B118: Ware, Willie Jean | C118: 2017-04-13T09:35:00 | D118: 2017-04-13T09:40:00 | E118: Willie Jean Ware (507 Urquhart St) | F118: 77301 | G118: DaVitas Dialysis (233 I-45 North) | H118: 77304 | I118: Dialysis | J118: 2 | K118: 08:15:00 | L118: 08:25:00 | M118: 00:10:00 | O118: 0.00
A119: Delivered | B119: Adams, Michael Sidney | C119: 2017-04-13T09:52:00 | D119: 2017-04-13T10:00:00 | E119: Adams, Michael Sidney (101 S Woodsway West) | F119: 77301 | G119: DaVitas Dialysis (233 I-45 North) | H119: 77304 | I119: Dialysis | J119: 2 | K119: 09:55:00 | L119: 10:05:00 | M119: 00:10:00 | O119: 0.00
A120: Delivered | B120: Taboada, Rutila | C120: 2017-04-13T10:08:00 | D120: 2017-04-13T10:17:00 | E120: Taboada, Rutila (618 Mill Ave) | F120: 77301 | G120: DaVitas Dialysis (233 I-45 North) | H120: 77304 | I120: Dialysis | J120: 1 | K120: 10:00:00 | L120: 10:05:00 | M120: 00:05:00 | O120: 0.00
A121: Delivered | B121: Kessler, Vickie | C121: 2017-04-13T11:42:00 | D121: 2017-04-13T11:35:00 | E121: St. Hope 1414 S Frazier | F121: 77301 | G121: Kessler, Vickie 1200 Pleasant Dr | H121: 77301 | I121: home | J121: 4 | K121: 10:00:00 | L121: 10:20:00 | M121: 00:20:00 | O121: 0.00
A122: Delivered | B122: Ware, Willie Jean | C122: 2017-04-13T13:50:00 | D122: 2017-04-13T13:57:00 | E122: DaVitas Dialysis (233 I-45 North) | F122: 77304 | G122: Willie Jean Ware (507 Urquhart St) | H122: 77301 | I122: home | J122: 2 | K122: 14:10:00 | L122: 14:20:00 | M122: 00:10:00 | O122: 0.00
A123: Delivered | B123: Taboada, Rutila | C123: 2017-04-13T14:11:00 | D123: 2017-04-13T14:22:00 | E123: DaVitas Dialysis (233 I-45 North) | F123: 77304 | G123: Taboada, Rutila (618 Mill Ave) | H123: 77301 | I123: home | J123: 1 | K123: 14:00:00 | L123: 14:05:00 | M123: 00:05:00
A124: Delivered | B124: Adams, Michael Sidney | C124: 2017-04-13T14:31:00 | D124: 2017-04-13T14:42:00 | E124: DaVitas Dialysis (233 I-45 North) | F124: 77304 | G124: Adams, Michael Sidney (101 S Woodsway West) | H124: 77301 | I124: home | J124: 2 | K124: 14:15:00 | L124: 14:25:00 | M124: 00:10:00 | O124: =N124*24 -> 0.00
A125: Delivered | B125: Cremeans, Stacy | C125: 2017-04-13T17:02:00 | D125: 2017-04-13T17:07:00 | E125: Lowes (1920 Westview Rd | F125: 770304 | G125: Cremeans, Stacy, 901 Wilson Rd. Apt 1013 | H125: 77301 | I125: home | J125: 2 | K125: 17:00:00 | L125: 17:10:00 | M125: 00:10:00 | N125: =L125-K115 -> 09:40:00 | O125: =N125*24 -> 9.67
A126: Delivered | B126: Hopcua, Lilly | C126: 2017-04-14T07:56:00 | D126: 2017-04-14T08:02:00 | E126: Hopcus, Lilly -200 Camelot #300 | F126: 77304 | G126: 233 I-45 North DaVitas Dialysis | H126: 77304 | I126: Dialysis | J126: 2 | K126: 08:00:00 | L126: 08:10:00 | M126: 00:10:00 | O126: =N126*24 -> 0.00
A127: Delivered | B127: Jacobo, Manuel | C127: 2017-04-14T10:22:00 | D127: 2017-04-14T10:35:00 | E127: DaVitas Dialysis (233 I-45 North) | F127: 77304 | G127: Jacobo, Manuel 110 Eloies | H127: 77301 | I127: home | J127: 2 | K127: 10:00:00 | L127: 10:10:00 | M127: 00:10:00 | O127: =N127*24 -> 0.00
A128: Delivered | B128: Cornelius, Sylvia | C128: 2017-04-14T11:57:00 | D128: 2017-04-14T12:10:00 | E128: Cornelius, Sylvia (1300 Silverdale Dr. Apt. 2004) | F128: 77301 | G128: Kroger (220 S. Loop 336 West) | H128: 77304 | I128: Shopping | J128: 4 | K128: 12:00:00 | L128: 12:20:00 | M128: 00:20:00 | O128: =N128*24 -> 0.00
A129: Delivered | B129: Hill, Lillie | C129: 2017-04-14T12:45:00 | D129: 2017-04-14T12:59:00 | E129: Lillie Hill (500 Hickerson #1004) | F129: 77301 | G129: River Park Dialysis 2010 s Loop | H129: 77301 | I129: Dialysis | J129: 3 | K129: 12:45:00 | L129: 13:00:00 | M129: 00:15:00
A130: Delivered | B130: Phillips, Sandra | C130: 2017-04-14T13:14:00 | D130: 2017-04-14T13:23:00 | E130: Phillips, Sandra 2205 N Frazier #43 | F130: 77301 | G130: Goodwill Stores (1102 W. Dallas) | H130: 77301 | I130: Work | J130: 3 | K130: 13:00:00 | L130: =K130+J130/24/12 -> 13:15:00 | M130: =L130-K130 -> 00:15:00 | O130: =N130*24 -> 0.00
A131: Delivered | B131: Hopcua, Lilly | C131: 2017-04-14T13:16:00 | D131: 2017-04-14T13:29:00 | E131: 233 I-45 North DaVitas Dialysis | F131: 77304 | G131: 200 Camelot #300 | H131: 77304 | I131: Dialysis | J131: 2 | K131: 12:30:00 | L131: 12:40:00 | M131: 00:10:00 | O131: =N131*24 -> 0.00
A132: Delivered | B132: Phillips, Sandra | C132: 2017-04-14T17:38:00 | D132: 2017-04-14T17:50:00 | E132: Goodwill Stores (1102 W. Dallas) | F132: 77301 | G132: Phillips, Sandra 2205 N Frazier #43 | H132: 77031 | I132: home | J132: 3 | K132: 17:30:00 | L132: 17:45:00 | M132: 00:15:00
A133: Delivered | B133: Hill, Lillie | C133: 2017-04-14T18:05:00 | D133: 2017-04-14T18:16:00 | E133: River Park Dialysis 2010 s Loop | F133: 77301 | G133: Lillie Hill (500 Hickerson #1004) | H133: 77301 | I133: home | J133: 3 | K133: 17:45:00 | L133: 18:00:00 | M133: 00:15:00 | N133: =L133-K126 -> 10:00:00 | O133: =N133*24 -> 10.00
A134: Delivered | B134: Cremeans, Stacy | C134: 2017-04-17T07:20:00 | D134: 2017-04-17T07:25:00 | E134: Cremeans, Stacy, 901 Wilson Rd. Apt 1013 | F134: 77301 | G134: Lowes (1920 Westview Rd | H134: 770304 | I134: Work | J134: 1 | K134: 07:30:00 | L134: 07:35:00 | M134: 00:05:00 | O134: =N134*24 -> 0.00
A135: Delivered | B135: Hopcus, Lilly | C135: 2017-04-17T07:47:00 | D135: 2017-04-17T07:57:00 | E135: Hopcus, Lilly -200 Camelot #300 | F135: 77304 | G135: 233 I-45 North DaVitas Dialysis | H135: 77304 | I135: Dialysis | J135: 2 | K135: 08:00:00 | L135: 08:10:00 | M135: 00:10:00 | O135: =N135*24 -> 0.00
A136: Delivered | B136: Jacobo, Manuel | C136: 2017-04-17T09:49:00 | D136: 2017-04-17T10:02:00 | E136: DaVitas Dialysis (233 I-45 North) | F136: 77304 | G136: Jacobo, Manuel 110 Eloies | H136: 77301 | I136: home | J136: 2 | K136: 10:00:00 | L136: 10:10:00 | M136: 00:10:00
A137: Delivered | B137: Hopcus, Lilly | C137: 2017-04-17T12:24:00 | D137: 2017-04-17T12:33:00 | E137: 233 I-45 North DaVitas Dialysis | F137: 77304 | G137: Hopcus, Lilly -200 Camelot #300 | H137: 77304 | I137: home | J137: 2 | K137: 12:30:00 | L137: 12:40:00 | M137: 00:10:00
A138: Delivered | B138: Phillips, Sandra | C138: 2017-04-17T12:56:00 | D138: 2017-04-17T13:06:00 | E138: Phillips, Sandra 2205 N Frazier #43 | F138: 77301 | G138: Goodwill Stores (1102 W. Dallas) | H138: 77301 | I138: Work | J138: 3 | K138: 13:00:00 | L138: 13:15:00 | M138: 00:15:00
A139: Delivered | B139: Cremeans, Stacy | C139: 2017-04-17T17:03:00 | D139: 2017-04-17T17:07:00 | E139: Lowes (1920 Westview Rd | F139: 770304 | G139: Cremeans, Stacy, 901 Wilson Rd. Apt 1013 | H139: 77301 | I139: home | J139: 2 | K139: 17:00:00 | L139: 17:10:00 | M139: 00:10:00 | O139: =N139*24 -> 0.00
A140: Delivered | B140: Phillips, Sandra | C140: 2017-04-17T17:35:00 | D140: 2017-04-17T17:44:00 | E140: Goodwill Stores (1102 W. Dallas) | F140: 77301 | G140: Phillips, Sandra 2205 N Frazier #43 | H140: 77031 | I140: home | J140: 3 | K140: 17:30:00 | L140: 17:45:00 | M140: 00:15:00 | N140: =L140-K134 -> 10:15:00 | O140: =N140*24 -> 10.25
A141: Delivered | B141: Cremeans, Stacy | C141: 2017-04-18T07:20:00 | D141: 2017-04-18T07:25:00 | E141: Cremeans, Stacy, 901 Wilson Rd. Apt 1013 | F141: 77301 | G141: Lowes (1920 Westview Rd | H141: 770304 | I141: Work | J141: 1 | K141: 07:30:00 | L141: 07:35:00 | M141: 00:05:00
A142: Delivered | B142: Ware, Willie Jean | C142: 2017-04-18T09:44:00 | D142: 2017-04-18T09:51:00 | E142: Willie Jean Ware (507 Urquhart St) | F142: 77301 | G142: DaVitas Dialysis (233 I-45 North) | H142: 77304 | I142: Dialysis | J142: 2 | K142: 09:45:00 | L142: 09:55:00 | M142: 00:10:00
A143: Delivered | B143: Adams, Michael Sidney | C143: 2017-04-18T10:00:00 | D143: 2017-04-18T10:08:00 | E143: Adams, Michael Sidney (101 S Woodsway West) | F143: 77301 | G143: DaVitas Dialysis (233 I-45 North) | H143: 77304 | I143: Dialysis | J143: 2 | K143: 09:55:00 | L143: 10:05:00 | M143: 00:10:00 | O143: =N143*24 -> 0.00
A144: Delivered | B144: Taboada, Rutila | C144: 2017-04-18T10:15:00 | D144: 2017-04-18T10:25:00 | E144: Taboada, Rutila (618 Mill Ave) | F144: 77301 | G144: DaVitas Dialysis (233 I-45 North) | H144: 77304 | I144: Dialysis | J144: 1 | K144: 10:00:00 | L144: 10:05:00 | M144: 00:05:00 | O144: =N144*24 -> 0.00
A145: Delivered | B145: Hill, Lillie | C145: 2017-04-18T10:35:00 | D145: 2017-04-18T10:45:00 | E145: Lillie Hill (500 Hickerson #1004) | F145: 77301 | G145: 100 Medical Center Blvd | H145: 77034 | I145: Medical | J145: 2 | K145: 10:30:00 | L145: 10:40:00 | M145: 00:10:00 | O145: =N145*24 -> 0.00
A146: Delivered | B146: Hill, Lillie | C146: 2017-04-18T12:13:00 | D146: 2017-04-18T12:22:00 | E146: 100 Medical Center Blvd | F146: 77034 | G146: Lillie Hill (500 Hickerson #1004) | H146: 77301 | I146: home | J146: 2 | K146: 13:00:00 | L146: 13:10:00 | M146: 00:10:00
A147: Delivered | B147: Ware, Willie Jean | C147: 2017-04-18T14:10:00 | D147: 2017-04-18T14:15:00 | E147: DaVitas Dialysis (233 I-45 North) | F147: 77304 | G147: Willie Jean Ware (507 Urquhart St) | H147: 77301 | I147: home | J147: 2 | K147: 14:10:00 | L147: 14:20:00 | M147: 00:10:00
A148: Delivered | B148: Taboada, Rutila | C148: 2017-04-18T14:38:00 | D148: 2017-04-18T14:47:00 | E148: DaVitas Dialysis (233 I-45 North) | F148: 77304 | G148: Taboada, Rutila (618 Mill Ave) | H148: 77301 | I148: home | J148: 1 | K148: 14:00:00 | L148: 14:05:00 | M148: 00:05:00 | O148: =N148*24 -> 0.00
A149: Delivered | B149: Adams, Michael Sidney | C149: 2017-04-18T14:38:00 | D149: 2017-04-18T15:00:00 | E149: DaVitas Dialysis (233 I-45 North) | F149: 77304 | G149: Adams, Michael Sidney (101 S Woodsway West) | H149: 77301 | I149: home | J149: 2 | K149: 14:15:00 | L149: 14:25:00 | M149: 00:10:00 | O149: 0.00
A150: Delivered | B150: Cremeans, Stacy | C150: 2017-04-18T17:05:00 | D150: 2017-04-18T17:12:00 | E150: Lowes (1920 Westview Rd | F150: 770304 | G150: Cremeans, Stacy, 901 Wilson Rd. Apt 1013 | H150: 77301 | I150: home | J150: 2 | K150: 17:00:00 | L150: 17:10:00 | M150: 00:10:00 | N150: =L150-K141 -> 09:40:00 | O150: 9.67
A151: Delivered | B151: Cremeans, Stacy | C151: 2017-04-19T07:22:00 | D151: 2017-04-19T07:28:00 | E151: Cremeans, Stacy, 901 Wilson Rd. Apt 1013 | F151: 77301 | G151: Lowes (1920 Westview Rd | H151: 770304 | I151: Work | J151: 1 | K151: 07:30:00 | L151: 07:35:00 | M151: 00:05:00 | O151: 0.00
A152: Delivered | B152: Hopcus, Lilly | C152: 2017-04-19T08:00:00 | D152: 2017-04-19T08:06:00 | E152: Hopcus, Lilly -200 Camelot #300 | F152: 77304 | G152: 233 I-45 North DaVitas Dialysis | H152: 77304 | I152: Dialysis | J152: 2 | K152: 08:00:00 | L152: 08:10:00 | M152: 00:10:00 | O152: 0.00
A153: Delivered | B153: Wallace, Charles | C153: 2017-04-19T08:16:00 | D153: 2017-04-19T08:21:00 | E153: Wallace, Charles (2213 N Frazier #1301) | F153: 77301 | G153: Kroger North Loop 336 (2222 I-45 North) | H153: 77304 | I153: Shopping | J153: 1 | K153: 08:30:00 | L153: 08:35:00 | M153: 00:05:00 | O153: 0.00
A154: Delivered | B154: Jacobo, Manuel | C154: 2017-04-19T09:44:00 | D154: 2017-04-19T09:58:00 | E154: DaVitas Dialysis (233 I-45 North) | F154: 77304 | G154: Jacobo, Manuel 110 Eloies | H154: 77301 | I154: home | J154: 2 | K154: 10:00:00 | L154: 10:10:00 | M154: 00:10:00 | O154: 0.00
A155: Delivered | B155: Hopcus, Lilly | C155: 2017-04-19T12:28:00 | D155: 2017-04-19T12:38:00 | E155: 233 I-45 North DaVitas Dialysis | F155: 77304 | G155: Hopcus, Lilly -200 Camelot #300 | H155: 77304 | I155: home | J155: 2 | K155: 12:30:00 | L155: 12:40:00 | M155: 00:10:00 | O155: 0.00
A156: Delivered | B156: Hill, Lillie | C156: 2017-04-19T12:46:00 | D156: 2017-04-19T12:56:00 | E156: Lillie Hill (500 Hickerson #1004) | F156: 77301 | G156: River Park Dialysis 2010 s Loop | H156: 77301 | I156: Dialysis | J156: 3 | K156: 12:45:00 | L156: 13:00:00 | M156: 00:15:00 | O156: 0.00
A157: Delivered | B157: Hill, Lillie | C157: 2017-04-19T18:03:00 | D157: 2017-04-19T18:14:00 | E157: River Park Dialysis 2010 s Loop | F157: 77301 | G157: Lillie Hill (500 Hickerson #1004) | H157: 77301 | I157: home | J157: 3 | K157: 17:45:00 | L157: 18:00:00 | M157: 00:15:00 | N157: =L157-K151 -> 10:30:00 | O157: 10.50
A158: Delivered | B158: Cremeans, Stacy | C158: 2017-04-20T07:20:00 | D158: 2017-04-20T07:26:00 | E158: Cremeans, Stacy, 901 Wilson Rd. Apt 1013 | F158: 77301 | G158: Lowes (1920 Westview Rd | H158: 77304 | I158: Work | J158: 1 | K158: 07:30:00 | L158: 07:35:00 | M158: 00:05:00 | O158: 0.00
A159: Delivered | B159: Wallace, Charles | C159: 2017-04-20T09:24:00 | D159: 2017-04-20T09:28:00 | E159: Wallace, Charles (2213 N Frazier #1301) | F159: 77301 | G159: Kroger North Loop (2222 I-45 North) | H159: 77301 | I159: Work | J159: 1 | K159: 09:30:00 | L159: 09:35:00 | M159: 00:05:00 | O159: 0.00
A160: Delivered | B160: Ware, Willie Jean | C160: 2017-04-20T09:40:00 | D160: 2017-04-20T09:48:00 | E160: Willie Jean Ware (507 Urquhart St) | F160: 77301 | G160: DaVitas Dialysis (233 I-45 North) | H160: 77304 | I160: Dialysis | J160: 2 | K160: 09:45:00 | L160: 09:55:00 | M160: 00:10:00 | O160: 0.00
A161: Delivered | B161: Adams, Michael Sidney | C161: 2017-04-20T09:56:00 | D161: 2017-04-20T10:08:00 | E161: Adams, Michael Sidney (101 S Woodsway West) | F161: 77301 | G161: DaVitas Dialysis (233 I-45 North) | H161: 77304 | I161: Dialysis | J161: 2 | K161: 09:55:00 | L161: 10:05:00 | M161: 00:10:00 | O161: 0.00
A162: Delivered | B162: Taboada, Rutila | C162: 2017-04-20T10:08:00 | D162: 2017-04-20T10:17:00 | E162: Taboada, Rutila (618 Mill Ave) | F162: 77301 | G162: DaVitas Dialysis (233 I-45 North) | H162: 77304 | I162: Dialysis | J162: 1 | K162: 10:00:00 | L162: 10:05:00 | M162: 00:05:00 | O162: 0.00
A163: Delivered | B163: Cornelius, Sylvia | C163: 2017-04-20T10:18:00 | D163: 2017-04-20T12:02:00 | E163: Chase Bank 1320 West Davis | F163: 77304 | G163: Cornelius, Sylvia (1300 Silverdale Dr. Apt. 2004) | H163: 77301 | I163: home | J163: 11 | K163: 12:00:00 | L163: 12:55:00 | M163: 00:55:00 | O163: 0.00
A164: Delivered | B164: Cornelius, Sylvia | C164: 2017-04-20T10:41:00 | D164: 2017-04-20T10:58:00 | E164: Cornelius, Sylvia (1300 Silverdale Dr. Apt. 2004) | F164: 77301 | G164: Chase Bank 1320 West Davis | H164: 77304 | I164: Personal | J164: 4 | K164: 11:00:00 | L164: 11:20:00 | M164: 00:20:00
A165: Delivered | B165: Brown, Betty | C165: 2017-04-20T11:47:00 | D165: 2017-04-20T12:00:00 | E165: Conroe Regional Medical Center (504 Medical Center Blvd) | F165: 77304 | G165: Brown, Betty 1300 Silverdale Dr. Apt. 3001 | H165: 77301 | I165: home | J165: 5 | K165: 13:00:00 | L165: 13:25:00 | M165: 00:25:00 | O165: =N165*24 -> 0.00
A166: Delivered | B166: Ware, Willie Jean | C166: 2017-04-20T13:52:00 | D166: 2017-04-20T13:58:00 | E166: DaVitas Dialysis (233 I-45 North) | F166: 77304 | G166: Willie Jean Ware (507 Urquhart St) | H166: 77301 | I166: home | J166: 2 | K166: 14:10:00 | L166: 14:20:00 | M166: 00:10:00 | O166: =N166*24 -> 0.00
A167: Delivered | B167: Adams, Michael Sidney | C167: 2017-04-20T14:09:00 | D167: 2017-04-20T14:20:00 | E167: DaVitas Dialysis (233 I-45 North) | F167: 77304 | G167: Adams, Michael Sidney (101 S Woodsway West) | H167: 77301 | I167: home | J167: 2 | K167: 14:15:00 | L167: 14:25:00 | M167: 00:10:00 | O167: =N167*24 -> 0.00
A168: Delivered | B168: Phillips, Sandra | C168: 2017-04-20T14:35:00 | D168: 4/20/217 14:48 | E168: Phillips, Sandra 2205 N Frazier #43 | F168: 77301 | G168: 100 Medical Center Blvd | H168: 77034 | I168: Medical | J168: 4 | K168: 14:30:00 | L168: 14:50:00 | M168: 00:20:00 | O168: =N168*24 -> 0.00
A169: Delivered | B169: Phillips, Sandra | C169: 2017-04-20T16:44:00 | D169: 2017-04-20T17:22:00 | E169: 100 Medical Center Blvd | F169: 77034 | G169: Phillips, Sandra 2205 N Frazier #43 | H169: 77301 | I169: home | J169: 7 | K169: 16:00:00 | L169: 16:35:00 | M169: 00:35:00
A170: Delivered | B170: Cremeans, Stacy | C170: 2017-04-20T17:05:00 | D170: 2017-04-20T17:10:00 | E170: Hopcus, Lilly -200 Camelot #300 | F170: 77304 | G170: 233 I-45 North DaVitas Dialysis | H170: 77304 | I170: Dialysis | J170: 2 | K170: 17:00:00 | L170: 17:10:00 | M170: 00:10:00 | N170: =L170-K158 -> 09:40:00 | O170: =N170*24 -> 9.67
A171: Delivered | B171: Cremeans, Stacy | C171: 2017-04-21T07:20:00 | D171: 2017-04-21T07:26:00 | E171: Cremeans, Stacy, 901 Wilson Rd. Apt 1013 | F171: 77301 | G171: Lowes (1920 Westview Rd | H171: 770304 | I171: Work | J171: 1 | K171: 07:30:00 | L171: 07:35:00 | M171: 00:05:00 | O171: =N171*24 -> 0.00
A172: Delivered | B172: Hopcus, Lilly | C172: 2017-04-21T07:56:00 | D172: 2017-04-21T08:02:00 | E172: Hopcus, Lilly -200 Camelot #300 | F172: 77304 | G172: 233 I-45 North DaVitas Dialysis | H172: 77304 | I172: Dialysis | J172: 2 | K172: 08:00:00 | L172: 08:10:00 | M172: 00:10:00 | O172: =N172*24 -> 0.00
A173: Delivered | B173: Taylor Jr, Milton | C173: 2017-04-21T08:53:00 | D173: 2017-04-21T09:00:00 | E173: Taylor Jr, Milton 500 Hickerson #903 | F173: 77301 | G173: Central Branch Library (104 I-45 N) | H173: 77301 | I173: Personal | J173: 1 | K173: 09:00:00 | L173: 09:05:00 | M173: 00:05:00 | O173: =N173*24 -> 0.00
A174: Delivered | B174: Taylor Jr, Milton | C174: 2017-04-21T09:20:00 | D174: 2017-04-21T09:28:00 | E174: Central Branch Library (104 I-45 N) | F174: 77301 | G174: Walgreens 1120 N Loop 336 West | H174: 77301 | I174: Shopping | J174: 2 | K174: 10:00:00 | L174: 10:10:00 | M174: 00:10:00
A175: Delivered | B175: Jacobo, Manuel | C175: 2017-04-21T09:41:00 | D175: 2017-04-21T09:50:00 | E175: DaVitas Dialysis (233 I-45 North) | F175: 77304 | G175: Jacobo, Manuel 110 Eloies | H175: 77301 | I175: home | J175: 2 | K175: 10:00:00 | L175: 10:10:00 | M175: 00:10:00
A176: Delivered | B176: Taylor Jr, Milton | C176: 2017-04-21T10:01:00 | D176: 2017-04-21T10:06:00 | E176: Walgreens 1120 N Loop 336 West | F176: 77301 | G176: Dollar Tree 2022 I-45 North | H176: 77301 | I176: Shopping | J176: 1 | K176: 11:00:00 | L176: 11:05:00 | M176: 00:05:00
A177: Delivered | B177: Taylor Jr, Milton | C177: 2017-04-21T11:37:00 | D177: 2017-04-21T11:46:00 | E177: Dollar Tree 2022 I-45 North | F177: 77301 | G177: Popeyes (905 W. Davis) | H177: 77301 | I177: Shopping | J177: 2 | K177: 12:00:00 | L177: 12:10:00 | M177: 00:10:00
A178: Delivered | B178: Taylor Jr, Milton | C178: 2017-04-21T11:58:00 | D178: 2017-04-21T12:06:00 | E178: Popeyes (905 W. Davis) | F178: 77301 | G178: Taylor Jr, Milton 500 Hickerson #903 | H178: 77301 | I178: home | J178: 2 | K178: 13:00:00 | L178: 13:10:00 | M178: 00:10:00
A179: Delivered | B179: Hopcus, Lilly | C179: 2017-04-21T12:17:00 | D179: 2017-04-21T12:28:00 | E179: 233 I-45 North DaVitas Dialysis | F179: 77304 | G179: Hopcus, Lilly -200 Camelot #300 | H179: 77304 | I179: home | J179: 2 | K179: 12:30:00 | L179: 12:40:00 | M179: 00:10:00 | O179: =N179*24 -> 0.00
A180: Delivered | B180: Hill, Lillie | C180: 2017-04-21T12:40:00 | D180: 2017-04-21T12:54:00 | E180: Lillie Hill (500 Hickerson #1004) | F180: 77301 | G180: River Park Dialysis 2010 s Loop | H180: 77301 | I180: Dialysis | J180: 3 | K180: 12:45:00 | L180: 13:00:00 | M180: 00:15:00
A181: Delivered | B181: Phillips, Sandra | C181: 2017-04-21T12:55:00 | D181: 2017-04-21T13:09:00 | E181: Phillips, Sandra 2205 N Frazier #43 | F181: 77301 | G181: Goodwill Stores (1102 W. Dallas) | H181: 77301 | I181: Work | J181: 3 | K181: 13:00:00 | L181: 13:15:00 | M181: 00:15:00
A182: Delivered | B182: Cremeans, Stacy | C182: 2017-04-21T16:01:00 | D182: 2017-04-21T16:07:00 | E182: Lowes (1920 Westview Rd | F182: 770304 | G182: Cremeans, Stacy, 901 Wilson Rd. Apt 1013 | H182: 77301 | I182: home | J182: 2 | K182: 16:00:00 | L182: 16:10:00 | M182: 00:10:00 | O182: =N182*24 -> 0.00
A183: Delivered | B183: Phillips, Sandra | C183: 2017-04-21T17:35:00 | D183: 2017-04-21T17:52:00 | E183: Goodwill Stores (1102 W. Dallas) | F183: 77301 | G183: Phillips, Sandra 2205 N Frazier #43 | H183: 77031 | I183: home | J183: 3 | K183: 17:30:00 | L183: 17:45:00 | M183: 00:15:00
A184: Delivered | B184: Hill, Lillie | C184: 2017-04-21T18:05:00 | D184: 2017-04-21T18:17:00 | E184: River Park Dialysis 2010 s Loop | F184: 77301 | G184: Lillie Hill (500 Hickerson #1004) | H184: 77301 | I184: home | J184: 3 | K184: 17:45:00 | L184: 18:00:00 | M184: 00:15:00 | N184: =L184-K171 -> 10:30:00 | O184: =N184*24 -> 10.50
A185: Delivered | B185: Cremeans, Stacy | C185: 2017-04-24T07:20:00 | D185: 2017-04-24T07:27:00 | E185: Cremeans, Stacy, 901 Wilson Rd. Apt 1013 | F185: 77301 | G185: Lowes (1920 Westview Rd | H185: 770304 | I185: Work | J185: 1 | K185: 07:30:00 | L185: 07:35:00 | M185: 00:05:00
A186: Delivered | B186: Hopcus, Lilly | C186: 2017-04-24T07:24:00 | D186: 2017-04-24T08:01:00 | E186: Hopcus, Lilly -200 Camelot #300 | F186: 77304 | G186: 233 I-45 North DaVitas Dialysis | H186: 77304 | I186: Dialysis | J186: 2 | K186: 08:00:00 | L186: 08:10:00 | M186: 00:10:00
A187: Delivered | B187: Smith, Alice J. | C187: 2017-04-24T08:53:00 | D187: 2017-04-24T09:04:00 | E187: Smith, Alice (617 Ave. I) | F187: 77031 | G187: Eye Associates 333 N Rivershire St #160 | H187: 77301 | I187: Medical | J187: 2 | K187: 09:00:00 | L187: 09:10:00 | M187: 00:10:00
A188: Delivered | B188: Smith, Alice J. | C188: 2017-04-24T09:09:00 | D188: 2017-04-24T09:22:00 | E188: Eye Associates 333 N Rivershire St #160 | F188: 77301 | G188: Smith, Alice (617 Ave. I) | H188: 77031 | I188: home | J188: 2 | K188: 11:00:00 | L188: 11:10:00 | M188: 00:10:00
A189: Delivered | B189: Brown, Betty | C189: 2017-04-24T10:00:00 | D189: 2017-04-24T10:10:00 | E189: Brown, Betty 1300 Silverdale Dr. Apt. 3001 | F189: 77301 | G189: Kroger (220 S. Loop 336 West) | H189: 77304 | I189: Shopping | J189: 3 | K189: 10:00:00 | L189: 10:15:00 | M189: 00:15:00
A190: Delivered | B190: Jacobo, Manuel | C190: 2017-04-24T10:17:00 | D190: 2017-02-24T10:29:00 | E190: DaVitas Dialysis (233 I-45 North) | F190: 77304 | G190: Jacobo, Manuel 110 Eloies | H190: 77301 | I190: home | J190: 2 | K190: 10:00:00 | L190: 10:10:00 | M190: 00:10:00
A191: Delivered | B191: Brown, Betty | C191: 2017-04-24T10:45:00 | D191: 2017-04-24T10:54:00 | E191: Kroger (220 S. Loop 336 West) | F191: 77304 | G191: Brown, Betty 1300 Silverdale Dr. Apt. 3001 | H191: 77301 | I191: home | J191: 1 | K191: 12:00:00 | L191: 12:05:00 | M191: 00:05:00
A192: Delivered | B192: Hopcus, Lilly | C192: 2017-04-24T12:42:00 | D192: 2017-04-24T12:53:00 | E192: 233 I-45 North DaVitas Dialysis | F192: 77304 | G192: Hopcus, Lilly -200 Camelot #300 | H192: 77304 | I192: home | J192: 2 | K192: 12:30:00 | L192: 12:40:00 | M192: 00:10:00
A193: Delivered | B193: Smith, Alice J. | C193: 2017-04-24T13:19:00 | D193: 2017-04-24T13:28:00 | E193: Smith, Alice (617 Ave. I) | F193: 77031 | G193: 100 Medical Center Blvd | H193: 7734 | I193: Medical | J193: 3 | K193: 13:00:00 | L193: 13:15:00 | M193: 00:15:00
A194: Delivered | B194: Smith, Alice J. | C194: 2017-04-24T15:07:00 | D194: 2017-04-24T15:20:00 | E194: 100 Medical Center Blvd | F194: 7734 | G194: Smith, Alice (617 Ave. I) | H194: 77031 | I194: home | J194: 3 | K194: 15:00:00 | L194: =K194+J194/24/12 -> 15:15:00 | M194: =L194-K194 -> 00:15:00
A195: Delivered | B195: Cremeans, Stacy | C195: 2017-04-24T17:04:00 | D195: 2017-04-24T17:10:00 | E195: Lowes (1920 Westview Rd | F195: 770304 | G195: Cremeans, Stacy, 901 Wilson Rd. Apt 1013 | H195: 77301 | I195: home | J195: 2 | K195: 17:00:00 | L195: 17:10:00 | M195: 00:10:00
A196: Delivered | B196: Hill, Lillie | C196: 2017-04-24T18:03:00 | D196: 2017-04-24T18:15:00 | E196: River Park Dialysis 2010 s Loop | F196: 77301 | G196: Lillie Hill (500 Hickerson #1004) | H196: 77301 | I196: home | J196: 3 | K196: 17:45:00 | L196: 18:00:00 | M196: 00:15:00 | N196: =L196-K185 -> 10:30:00 | O196: =N196*24 -> 10.50
A197: Delivered | B197: Cremeans, Stacy | C197: 2017-04-25T07:20:00 | D197: 2017-04-25T07:25:00 | E197: Cremeans, Stacy, 901 Wilson Rd. Apt 1013 | F197: 77301 | G197: Lowes (1920 Westview Rd | H197: 770304 | I197: Work | J197: 1 | K197: 07:30:00 | L197: 07:35:00 | M197: 00:05:00
A198: Delivered | B198: Wallace, Charles | C198: 2017-04-25T08:49:00 | D198: 2017-04-25T08:55:00 | E198: Wallace, Charles (2213 N Frazier #1301) | F198: 77301 | G198: Kroger North Loop (2222 I-45 North) | H198: 77301 | I198: Work | J198: 1 | K198: 09:00:00 | L198: 09:05:00 | M198: 00:05:00
A199: Delivered | B199: Kessler, Vickie | C199: 2017-04-25T09:05:00 | D199: 2017-04-25T09:17:00 | E199: Kessler, Vickie 1200 Pleasant Dr | F199: 77301 | G199: 508 Medical Center Blvd | H199: 7731 | I199: Medical | J199: 4 | K199: 09:00:00 | L199: 09:20:00 | M199: 00:20:00
A200: Delivered | B200: Cornelius, Sylvia | C200: 2017-04-25T09:30:00 | D200: 2017-04-25T09:42:00 | E200: Cornelius, Sylvia (1300 Silverdale Dr. Apt. 2004) | F200: 77301 | G200: Conroe Affiliates 507 medical center blvd | H200: 77034 | I200: Medical | J200: 3 | K200: 09:30:00 | L200: 09:45:00 | M200: 00:15:00
... 44 more rows

Sheet Maint. 1473
A1: Vehicle Maintenance | B1: Fixed Route | C1: Paratransit | D1: EOM Mileage | E1: 45,313
A2: Transit Vehicle Breakdowns | B2: 0 | C2: 0
A3: Unit Number | B3: 1473 | C3: 1473
A4: Odometer Reading | B4: 45,313 | C4: N/A
A5: Date Out of Service | B5: NA | C5: N/A
A6: Date Return to Service | B6: NA | C6: N/A
A7: Description of Problem | C7: N/A
A8: Vehicle PM Scheduled | B8: ~36000 | C8: N/A
A9: Vehicle PM Performed On-Time | B9: N/A | C9: N/A

Sheet Maint. 1474
A1: Vehicle Maintenance | B1: Fixed Route | C1: Paratransit | D1: EOM Mileage | E1: 41,915
A2: Transit Vehicle Breakdowns | B2: 0 | C2: 0
A3: Unit Number | B3: 1474 | C3: 1474
A4: Odometer Reading | B4: 41,915 | C4: N/A
A5: Date Out of Service | B5: NA | C5: N/A
A6: Date Return to Service | B6: N/A | C6: N/A
A7: Description of Problem | C7: N/A
A8: Vehicle PM Scheduled | B8: N/A | C8: N/A
A9: Vehicle PM Performed On-Time | B9: N/A | C9: N/A
A10: ** Vehicle is still out of service. Awaiting seat bracket. Arrived in March/ Maintenance Performed in March

Sheet Maint. 1475
A1: Vehicle Maintenance | B1: Fixed Route | C1: Paratransit | D1: EOM Mileage | E1: 39,707
A2: Transit Vehicle Breakdowns | B2: 0 | C2: 0
A3: Unit Number | B3: 1475 | C3: 1475
A4: Odometer Reading | B4: 39,707 | C4: N/A
A5: Date Out of Service | B5: 2017-04-25 | C5: N/A
A6: Date Return to Service | B6: N/A | C6: N/A
A7: Description of Problem | B7: Seat back Broken | C7: N/A
A8: Vehicle PM Scheduled | B8: N/A | C8: N/A
A9: Vehicle PM Performed On-Time | B9: N/A | C9: N/A

Sheet Maint. 1476
A1: Vehicle Maintenance | B1: Fixed Route | C1: Paratransit | D1: EOM Mileage | E1: 47,612
A2: Transit Vehicle Breakdowns | B2: 0 | C2: 0
A3: Unit Number | B3: 1476 | C3: 1476
A4: Odometer Reading | B4: 47,612 | C4: N/A
A5: Date Out of Service | B5: N/A | C5: N/A
A6: Date Return to Service | B6: N/A | C6: N/A
A7: Description of Problem | C7: N/A
A8: Vehicle PM Scheduled | B8: N/A | C8: N/A
A9: Vehicle PM Performed On-Time | B9: N/A | C9: N/A

Sheet Maint. 6389 (hidden)
A1: Vehicle Maintenance | B1: Fixed Route | C1: Paratransit
A2: Transit Vehicle Breakdowns
A3: Unit Number | B3: GSD 6389 | C3: GSD 6389
A4: Odometer Reading
A5: Date Out of Service
A6: Date Return to Service
A7: Description of Problem
A8: Vehicle PM Scheduled
A9: Vehicle PM Performed On-Time

Sheet Maint. 1603
A1: Vehicle Maintenance | B1: Fixed Route | C1: Paratransit | D1: EOM Mileage | E1: 7,592
A2: Transit Vehicle Breakdowns | B2: 0 | C2: 0
A3: Unit Number | B3: 1603 | C3: 1603
A4: Odometer Reading | B4: N/A | C4: 7,156
A5: Date Out of Service | B5: N/A | C5: N/A
A6: Date Return to Service | B6: N/A | C6: N/A
A7: Description of Problem | B7: N/A | C7: N/A
A8: Vehicle PM Scheduled | B8: N/A | C8: ~10000
A9: Vehicle PM Performed On-Time | B9: N/A | C9: N/A

Sheet Maint. 1604
A1: Vehicle Maintenance | B1: Fixed Route | C1: Paratransit | D1: EOM Mileage | E1: 15,021
A2: Transit Vehicle Breakdowns | B2: 0 | C2: 0
A3: Unit Number | B3: 1604 | C3: 1604
A4: Odometer Reading | B4: N/A | C4: 12,238
A5: Date Out of Service | B5: N/A | C5: N/A
A6: Date Return to Service | B6: N/A | C6: N/A
A7: Description of Problem | B7: N/A
A8: Vehicle PM Scheduled | B8: N/A | C8: ~10000
A9: Vehicle PM Performed On-Time | B9: N/A | C9: N/A
